bitfinex/quotes_ETHUSD_20250326
["timestamp","ask_amount","ask_price","bid_price","bid_amount"]
[1743010366273,3.0,2011.2,2010.9,9.94544]
[1743010366478,3.0,2011.2,2010.9,4.97265]
[1743010366720,3.0,2011.2,2010.9,9.9454]
[1743010367308,3.0,2011.2,2011.0,4.97262]
[1743010367619,3.0,2011.4,2011.1,5.72546]
[1743010367917,3.0,2011.4,2011.1,10.69774]
[1743010368117,3.0,2011.4,2011.1,0.7532]
[1743010368316,7.97175,2011.4,2011.1,0.7532]
[1743010368616,7.97175,2011.4,2011.1,5.72552]
[1743010368817,7.97175,2011.4,2011.1,0.7532]
[1743010369017,3.0,2011.4,2011.1,5.72549]
[1743010369609,7.9718,2011.4,2011.1,0.7532]
[1743010369820,5.25728967,2011.4,2010.9,4.97284]
[1743010370030,4.03041065,2012.0,2011.2,0.8092]
[1743010370207,4.03041065,2012.0,2011.7,5.75461]
[1743010370574,3.0,2011.9,2011.7,5.75461]
[1743010371094,3.0,2011.9,2011.7,5.75449]
[1743010371292,4.03041065,2012.0,2011.7,10.72528]
[1743010371510,4.03041065,2012.0,2011.7,5.75449]
[1743010371825,3.0,2011.9,2011.7,5.75449]
[1743010372825,3.0,2011.9,2011.8,4.97067]
[1743010373030,8.83877979,2011.9,2011.3,0.761]
[1743010373192,4.97106,2011.7,2011.3,5.73278]
[1743010373540,4.97106,2011.7,2011.2,4.972]
[1743010373541,7.97139,2011.6,2011.2,4.972]
[1743010373691,7.97137,2011.6,2011.2,4.972]
[1743010373891,7.97137,2011.6,2011.2,9.94401]
[1743010374094,7.97137,2011.6,2011.3,4.97189]
[1743010374354,3.0,2011.8,2011.5,4.97128]
[1743010374618,7.97074,2011.8,2011.4,5.72645]
[1743010374784,12.60977372,2011.7,2011.3,4.97186]
[1743010374984,7.97104,2011.7,2011.4,4.97158]
[1743010375795,4.97069,2011.8,2011.5,4.9714]
[1743010376011,13.13965,2011.9,2011.5,4.97118]
[1743010376209,4.97068,2011.8,2011.5,4.97118]
[1743010377628,10.47402813,2011.9,2011.5,4.97118]
[1743010377802,10.27542813,2011.9,2011.6,4.97102]
[1743010378009,3.0,2011.9,2011.7,5.72841]
[1743010378706,4.97055,2011.9,2011.5,4.97131]
[1743010379010,4.97053,2011.9,2011.6,4.97108]
[1743010379427,1.82213,2011.9,2011.4,11.87813]
[1743010379635,7.97141,2011.5,2011.4,6.11999]
[1743010379819,13.05541,2011.5,2011.4,6.11999]
[1743010380018,18.6199413,2011.5,2011.4,6.11999]
[1743010380226,4.97273,2011.0,2010.7,4.97338]
[1743010380533,3.0,2010.8,2010.6,5.75416]
[1743010380732,3.0,2010.9,2010.6,5.75416]
[1743010380895,7.97294,2010.9,2010.6,5.75425]
[1743010381091,4.97341,2010.7,2010.4,11.86562]
[1743010381419,4.97341,2010.7,2010.4,6.11999]
[1743010381420,7.97371,2010.6,2010.4,6.11999]
[1743010381727,3.0,2010.6,2010.3,4.97432]
[1743010381929,7.97366,2010.6,2010.2,4.97462]
[1743010382103,7.97366,2010.6,2010.2,9.94909]
[1743010382303,5.790896,2010.6,2010.1,5.85796]
[1743010382512,4.97408,2010.5,2010.1,10.8327]
[1743010382722,4.97408,2010.5,2010.2,4.97462]
[1743010383100,3.0,2010.5,2010.3,4.97437]
[1743010383336,3.0,2010.6,2010.2,9.94913]
[1743010383513,3.0,2010.4,2010.1,0.8831]
[1743010383723,3.0,2010.4,2010.1,0.07]
[1743010383919,3.0,2010.2,2010.1,0.07]
[1743010384463,0.1986,2011.8,2010.5,0.8117]
[1743010384667,0.36834077,2012.3,2011.4,0.8117]
[1743010384952,7.97054,2011.9,2011.5,4.97126]
[1743010385115,12.94114,2011.9,2011.5,4.97126]
[1743010385311,4.97022,2012.0,2011.5,4.97125]
[1743010385515,4.97022,2012.0,2011.6,4.97108]
[1743010385516,5.964238,2012.0,2011.6,4.97108]
[1743010385729,4.97043,2011.9,2011.5,9.94249]
[1743010385948,3.0,2011.8,2011.5,9.94249]
[1743010386106,3.0,2011.8,2011.6,4.97111]
[1743010386531,5.964238,2012.0,2011.7,4.97092]
[1743010386767,4.96964,2012.3,2011.5,4.97141]
[1743010386914,4.96964,2012.3,2011.8,4.97051]
[1743010386915,4.96978,2012.2,2011.8,4.97051]
[1743010387220,7.9701,2012.1,2011.7,4.97084]
[1743010387657,4.97053,2011.9,2011.5,4.9714]
[1743010387842,3.0,2011.7,2011.5,4.97132]
[1743010388013,0.1986,2011.8,2011.0,0.7942]
[1743010388213,7.97158,2011.5,2011.1,4.97231]
[1743010388442,3.0,2011.4,2011.1,4.97231]
[1743010388641,3.0,2011.5,2011.2,4.97212]
[1743010388940,8.16943,2011.8,2011.4,4.97166]
[1743010389141,13.13952,2011.9,2011.2,4.97215]
[1743010389351,13.13952,2011.9,2011.5,4.97131]
[1743010389745,13.13952,2011.9,2011.5,4.97136]
[1743010390048,10.054826,2011.9,2011.6,4.97106]
[1743010390346,4.97069,2011.8,2011.4,4.97164]
[1743010390646,3.0,2011.7,2011.4,4.97164]
[1743010390836,3.0,2011.7,2011.4,4.97152]
[1743010391039,3.0,2011.5,2011.2,4.97214]
[1743010391230,3.0,2011.5,2011.2,4.97204]
[1743010391421,3.0,2011.7,2011.4,4.97154]
[1743010391751,7.97093,2011.7,2011.3,4.97189]
[1743010392147,7.97151,2011.5,2011.2,0.576624]
[1743010392361,3.0,2011.2,2010.8,4.97312]
[1743010392542,12.94466,2011.2,2010.8,4.97312]
[1743010392747,7.97232,2011.2,2010.8,4.97312]
[1743010392945,3.0,2011.0,2010.7,5.7424]
[1743010393324,3.0,2011.0,2010.8,4.97313]
[1743010393525,3.0,2011.2,2010.9,4.97285]
[1743010394050,7.97219,2011.2,2010.8,4.97308]
[1743010394232,13.94350853,2011.2,2010.8,4.97308]
[1743010394619,8.97116853,2011.2,2010.8,9.94605]
[1743010394875,7.97219,2011.2,2010.9,4.97288]
[1743010395182,7.97219,2011.2,2010.8,4.97307]
[1743010395476,6.46928,2011.4,2010.7,5.74246]
[1743010395477,3.0,2011.0,2010.7,5.74238]
[1743010395625,3.0,2011.0,2010.7,4.97328]
[1743010396041,3.0,2011.0,2010.7,4.97324]
[1743010396354,4.97218,2011.2,2010.9,4.97285]
[1743010396755,4.97218,2011.2,2010.8,4.97299]
[1743010396962,9.9445,2011.2,2010.8,4.97299]
[1743010397259,3.0,2011.0,2010.8,4.97299]
[1743010397853,3.0,2011.0,2010.7,9.9465]
[1743010398036,3.0,2011.0,2010.7,4.97324]
[1743010398629,3.0,2011.0,2010.8,4.97305]
[1743010399059,3.0,2011.0,2010.7,4.97324]
[1743010400126,4.9724,2011.1,2010.6,11.09351]
[1743010400344,4.97322,2010.8,2010.4,4.974]
[1743010400545,7.97327,2010.8,2010.4,4.97398]
[1743010400829,12.94662,2010.8,2010.4,4.97398]
[1743010401157,12.94662,2010.8,2010.3,4.97436]
[1743010401158,4.97365,2010.6,2010.3,4.97436]
[1743010401358,4.97365,2010.6,2010.2,6.94139]
[1743010401359,3.0,2010.5,2010.2,11.91592]
[1743010401657,3.0,2010.5,2010.2,11.91586]
[1743010402461,3.0,2010.5,2010.2,16.89033]
[1743010402631,4.63927706,2010.6,2010.2,6.11999]
[1743010402826,3.0,2010.3,2010.2,6.11999]
[1743010403167,5.73780771,2010.5,2010.1,5.04487]
[1743010403168,3.0,2010.5,2010.1,0.07]
[1743010403360,3.0,2010.5,2010.3,4.9743]
[1743010403539,3.0,2010.7,2010.4,4.97402]
[1743010403924,3.0,2010.7,2010.4,9.94802]
[1743010404130,7.97316,2010.8,2010.5,4.97364]
[1743010404854,7.97316,2010.8,2010.4,11.02406]
[1743010405061,7.97316,2010.8,2010.4,6.04997]
[1743010405252,12.61243706,2010.8,2010.4,6.04997]
[1743010405456,4.97349,2010.7,2010.3,9.94863]
[1743010405841,4.97349,2010.7,2010.4,4.97408]
[1743010406034,4.97349,2010.7,2010.3,4.97427]
[1743010406234,3.0,2010.6,2010.4,4.97403]
[1743010406436,7.63927706,2010.8,2010.4,4.97393]
[1743010406736,7.97333,2010.8,2010.4,9.94795]
[1743010406942,4.9734,2010.7,2010.4,4.97393]
[1743010407143,3.0,2010.6,2010.3,4.97434]
[1743010407365,4.97396,2010.5,2010.2,5.78559]
[1743010407646,7.97381,2010.6,2010.2,4.97448]
[1743010407969,3.0,2010.4,2010.1,11.16473]
[1743010408140,3.0,2010.4,2010.2,4.97461]
[1743010408641,3.0,2010.4,2010.3,4.97438]
[1743010408841,3.0,2010.4,2010.2,9.94893]
[1743010409072,3.0,2010.4,2010.2,4.97443]
[1743010409239,9.86104758,2010.4,2010.1,0.07]
[1743010409440,14.50032464,2010.4,2010.1,0.07]
[1743010409841,3.0,2010.2,2010.1,0.07]
[1743010410144,7.97462,2010.2,2010.1,0.07]
[1743010410343,12.81249706,2010.2,2010.1,0.07]
[1743010410571,14.94212059,2010.2,2010.1,0.07]
[1743010411958,15.31105579,2010.2,2010.1,0.07]
[1743010412155,15.31105579,2010.2,2009.1,7.12355957]
[1743010412156,0.1986,2010.1,2009.1,7.12355957]
[1743010412360,3.0,2009.3,2009.0,4.97756]
[1743010412644,3.0,2009.1,2008.9,0.7502]
[1743010412863,3.0,2009.1,2008.7,4.97832]
[1743010412864,4.63927706,2009.0,2008.7,5.78552]
[1743010413061,3.0,2009.1,2008.8,9.95607]
[1743010413274,7.97744,2009.1,2008.7,10.76377]
[1743010413471,3.0,2009.1,2008.7,10.76369]
[1743010413677,3.0,2009.1,2008.8,4.97801]
[1743010413850,3.0,2009.1,2008.7,0.8072]
[1743010413851,3.0,2009.1,2008.9,4.97776]
[1743010414057,3.0,2009.5,2009.2,4.97694]
[1743010414252,3.0,2009.3,2009.0,11.84998]
[1743010414455,3.0,2009.3,2008.8,0.578521]
[1743010414456,7.63927706,2009.1,2008.7,5.73066]
[1743010414676,4.97723,2009.2,2008.4,19.47884]
[1743010414677,3.0,2008.8,2008.5,4.9788]
[1743010414878,3.0,2008.8,2008.5,4.97871]
[1743010415179,4.63927706,2009.1,2008.4,0.7524]
[1743010415366,12.95543,2009.0,2008.6,4.97835]
[1743010415549,4.77933071,2009.0,2008.4,0.7524]
[1743010415745,3.0,2008.8,2008.6,4.97851]
[1743010415951,3.0,2009.0,2008.6,4.9784]
[1743010416148,12.95554,2009.0,2008.6,4.9784]
[1743010416350,3.0,2008.8,2008.5,4.97882]
[1743010416657,3.0,2008.8,2008.5,4.97871]
[1743010416857,3.0,2008.8,2008.6,4.9785]
[1743010417058,3.0,2009.0,2008.6,4.97847]
[1743010417255,3.0,2009.0,2008.5,4.97877]
[1743010417458,8.192,2009.2,2008.9,9.95547]
[1743010417682,0.1986,2009.4,2009.2,4.97698]
[1743010417853,9.83527706,2009.6,2009.0,4.97758]
[1743010418051,9.83527706,2009.6,2009.3,4.97677]
[1743010418269,7.97645,2009.5,2009.1,19.47734]
[1743010418469,3.0,2009.3,2009.1,14.5]
[1743010418677,3.0,2009.1,2008.7,4.97831]
[1743010418845,4.9774,2009.1,2008.5,0.774]
[1743010419048,3.0,2009.0,2008.7,4.97824]
[1743010419485,8.199,2009.1,2008.7,4.97824]
[1743010419694,3.0,2009.0,2008.8,4.97794]
[1743010419863,5.199,2009.1,2008.9,4.97771]
[1743010420063,5.199,2009.1,2008.9,9.9554]
[1743010420263,5.199,2009.1,2008.9,4.97769]
[1743010420465,5.199,2009.1,2008.8,4.978]
[1743010420665,5.199,2009.1,2008.9,4.97782]
[1743010420861,5.199,2009.1,2009.0,4.9776]
[1743010421061,9.81435706,2009.5,2009.1,4.97712]
[1743010421390,9.81435706,2009.5,2008.8,4.97806]
[1743010421391,9.61613706,2009.3,2008.8,4.97806]
[1743010421592,3.0,2009.0,2008.8,4.978]
[1743010421799,3.0,2009.0,2008.7,4.97826]
[1743010422102,7.9776,2009.0,2008.7,4.97826]
[1743010422465,3.0,2009.0,2008.7,4.97826]
[1743010422795,4.97724,2009.2,2008.7,4.97826]
[1743010422796,7.97721,2009.2,2008.8,4.97798]
[1743010422992,4.97745,2009.1,2008.7,4.97823]
[1743010423316,7.97818,2008.8,2008.4,4.97897]
[1743010423661,3.38049659,2009.0,2008.3,0.7723]
[1743010424002,7.97745,2009.1,2008.8,4.97798]
[1743010424202,9.4648194,2009.1,2008.8,4.97798]
[1743010424492,9.4648194,2009.1,2008.7,4.97833]
[1743010424693,9.4648194,2009.1,2008.7,4.9782]
[1743010425201,4.63927706,2009.0,2008.4,4.97894]
[1743010425367,4.9782,2008.8,2008.4,4.97894]
[1743010425567,4.97848,2008.7,2008.3,5.75149]
[1743010426071,3.0,2008.6,2008.3,5.75154]
[1743010426263,3.0,2008.7,2008.4,4.979]
[1743010426685,3.0,2008.7,2008.4,4.97895]
[1743010426884,7.05334689,2009.1,2008.7,4.97825]
[1743010427086,4.97664,2009.4,2009.1,4.97732]
[1743010427368,4.97747,2009.1,2008.8,5.78456]
[1743010427570,3.0,2008.9,2008.5,0.7971]
[1743010427763,3.0,2008.6,2008.3,0.7971]
[1743010428095,4.97764,2009.0,2008.3,0.7971]
[1743010428096,4.97798,2008.9,2008.5,9.95736]
[1743010428287,7.97768,2009.0,2008.6,4.97849]
[1743010430097,4.97794,2008.9,2008.6,4.97849]
[1743010430401,4.97793,2008.9,2008.5,9.95734]
[1743010430617,4.97793,2008.9,2008.5,9.95736]
[1743010430918,7.97809,2008.8,2008.5,4.97864]
[1743010431071,3.0,2008.8,2008.5,9.95729]
[1743010431273,3.0,2008.8,2008.6,4.97849]
[1743010431972,4.97793,2008.9,2008.5,4.97864]
[1743010431973,7.97785,2008.9,2008.5,4.97871]
[1743010432172,7.97785,2008.9,2008.5,9.9574]
[1743010432603,7.97785,2008.9,2008.5,4.97869]
[1743010432996,10.27768471,2008.9,2008.5,4.97869]
[1743010433211,3.0,2008.9,2008.7,4.97823]
[1743010433411,7.97743,2009.1,2008.7,9.9564]
[1743010433775,7.97743,2009.1,2008.8,4.97806]
[1743010434809,12.95493,2009.1,2008.7,4.97817]
[1743010435011,7.97819,2008.8,2008.5,4.97879]
[1743010435187,7.97819,2008.8,2008.4,10.72809]
[1743010435392,7.97819,2008.8,2008.5,4.97881]
[1743010435815,7.97872,2008.6,2008.2,4.97935]
[1743010436002,4.75963371,2008.6,2008.3,4.97925]
[1743010436202,3.0,2008.5,2008.4,4.97908]
[1743010436377,3.0,2008.5,2008.3,4.97925]
[1743010436582,4.97898,2008.5,2008.1,12.0018]
[1743010436893,3.0,2008.4,2008.1,0.902]
[1743010437094,7.97894,2008.5,2008.1,5.88173]
[1743010437299,4.28168171,2008.5,2008.1,0.902]
[1743010437501,8.17818,2008.2,2008.1,0.07]
[1743010438223,8.17818,2008.2,2008.1,0.16335515]
[1743010438538,8.72818,2008.2,2008.1,0.07]
[1743010438710,11.34359511,2008.2,2008.1,0.07]
[1743010439026,16.55859511,2008.2,2008.1,0.07]
[1743010439329,17.10859511,2008.2,2008.1,0.07]
[1743010439537,8.52983,2008.1,2008.0,0.005]
[1743010439690,25.55421206,2008.1,2008.0,0.005]
[1743010439891,19.38540077,2008.1,2008.0,0.005]
[1743010440117,14.62937777,2008.1,2008.0,0.005]
[1743010440326,14.65510071,2008.1,2008.0,0.005]
[1743010440627,14.45650071,2008.1,2008.0,0.005]
[1743010440783,7.97965,2008.2,2008.0,0.13008633]
[1743010440986,4.97983,2008.1,2008.0,0.13008633]
[1743010441398,4.97983,2008.1,2008.0,0.005]
[1743010441586,12.81770706,2008.1,2008.0,0.005]
[1743010441792,15.65368894,2008.1,2008.0,0.005]
[1743010442195,11.01441188,2008.1,2008.0,0.005]
[1743010442402,15.65368894,2008.1,2008.0,0.005]
[1743010443116,3.0,2008.1,2008.0,0.005]
[1743010443323,3.0,2008.1,2008.0,5.79387]
[1743010443498,3.0,2008.1,2008.0,0.005]
[1743010443700,3.0,2008.1,2008.0,0.13008633]
[1743010444393,4.97843,2008.7,2008.3,4.97924]
[1743010444608,4.97867,2008.6,2008.4,0.12008633]
[1743010444804,3.0,2008.5,2008.3,4.97924]
[1743010445021,3.0,2008.5,2008.4,0.1178765]
[1743010445240,3.0,2008.5,2008.3,4.97924]
[1743010445432,4.06599275,2008.7,2008.4,0.1178765]
[1743010445733,3.0,2008.7,2008.4,4.97891]
[1743010445940,7.9784,2008.7,2008.5,0.1178765]
[1743010446137,12.9569,2008.7,2008.5,0.1178765]
[1743010446336,12.9569,2008.7,2008.3,4.97931]
[1743010446807,7.9784,2008.7,2008.4,0.1178765]
[1743010447134,10.32450213,2008.7,2008.4,4.97898]
[1743010447325,10.32450213,2008.7,2008.5,0.1178765]
[1743010447733,10.32450213,2008.7,2008.3,9.95837]
[1743010447906,7.9784,2008.7,2008.6,0.1178765]
[1743010448103,4.9786,2008.6,2008.3,4.97918]
[1743010448308,4.9786,2008.6,2008.2,4.97956]
[1743010448309,3.0,2008.4,2008.2,4.97949]
[1743010448620,3.0,2008.4,2008.2,9.95894]
[1743010448807,12.95751,2008.6,2008.2,4.97945]
[1743010449007,3.0,2008.4,2008.2,4.97945]
[1743010449204,4.63927706,2008.5,2008.0,0.8046]
[1743010449545,7.97983,2008.1,2008.0,0.005]
[1743010449856,3.0,2008.1,2008.0,0.005]
[1743010450260,7.97983,2008.1,2008.0,0.005]
[1743010450466,9.73971771,2008.1,2008.0,0.005]
[1743010450654,14.37899477,2008.1,2008.0,0.005]
[1743010450848,9.73971771,2008.1,2008.0,0.005]
[1743010451351,9.93831771,2008.1,2008.0,0.005]
[1743010452245,3.0,2008.1,2008.0,0.005]
[1743010452639,7.97983,2008.1,2008.0,0.005]
[1743010453117,3.0,2008.1,2008.0,0.005]
[1743010453314,7.97983,2008.1,2008.0,0.005]
[1743010453822,7.97983,2008.1,2008.0,0.11657957]
[1743010454630,3.0,2008.1,2008.0,0.11657957]
[1743010454850,8.777807,2008.1,2008.0,0.11657957]
[1743010455046,8.777807,2008.1,2008.0,0.005]
[1743010455235,3.0,2008.1,2008.0,0.1162974]
[1743010455848,4.97893,2008.5,2008.0,0.1162974]
[1743010456052,15.08922706,2008.7,2008.0,0.1162974]
[1743010456232,3.0,2008.3,2008.0,5.0962974]
[1743010456430,3.0,2008.3,2008.0,10.0762374]
[1743010456954,7.97934,2008.3,2008.0,5.0962374]
[1743010457173,7.97934,2008.3,2008.0,0.1162974]
[1743010457463,7.97934,2008.3,2008.0,5.0963574]
[1743010457639,7.97943,2008.3,2008.0,5.0962274]
[1743010457829,3.0,2008.3,2008.0,5.0962274]
[1743010458029,4.9796,2008.2,2008.0,0.1162974]
[1743010458266,9.95889,2008.3,2008.0,0.1162974]
[1743010458569,12.95834,2008.4,2008.0,5.0963474]
[1743010458870,4.97937,2008.3,2008.0,5.0963474]
[1743010459576,9.95885,2008.3,2008.0,5.0963474]
[1743010459784,4.97937,2008.3,2008.0,5.0963474]
[1743010460696,7.97912,2008.4,2008.0,5.0963474]
[1743010460994,4.97936,2008.3,2008.0,5.0963474]
[1743010461481,7.97912,2008.4,2008.0,5.0963474]
[1743010461800,7.97912,2008.4,2008.1,4.97982]
[1743010462096,10.15549,2008.7,2008.3,4.97925]
[1743010462297,4.97861,2008.6,2008.3,4.97925]
[1743010462500,3.0,2008.5,2008.2,4.97958]
[1743010462802,3.0,2008.5,2008.4,0.1112974]
[1743010463195,7.97883,2008.5,2008.4,0.1112974]
[1743010463366,4.77953171,2008.5,2008.1,0.7778]
[1743010463702,4.77953171,2008.5,2008.0,0.005]
[1743010463703,7.97958,2008.2,2008.0,0.005]
[1743010463981,3.0,2008.2,2008.0,0.005]
[1743010464161,3.0,2008.1,2008.0,4.985]
[1743010464355,3.0,2008.2,2008.0,0.005]
[1743010464781,3.0,2008.2,2008.0,4.98506]
[1743010464977,3.0,2008.2,2008.0,0.005]
[1743010465183,3.0,2008.4,2008.1,4.97983]
[1743010465379,3.0,2008.6,2008.3,5.73865]
[1743010465583,7.9786,2008.6,2008.3,5.73865]
[1743010465782,5.17657,2008.9,2008.3,0.7594]
[1743010465968,4.97762,2009.0,2008.6,4.97858]
[1743010466169,9.7687277,2009.0,2008.7,5.79614]
[1743010466372,9.7687277,2009.0,2008.7,5.79623]
[1743010466557,3.0,2008.9,2008.7,5.79623]
[1743010466883,7.63927706,2008.9,2008.4,0.8299]
[1743010467284,3.0,2008.5,2008.1,11.09973]
[1743010467475,3.0,2008.3,2008.1,11.87283]
[1743010467653,4.97904,2008.5,2008.1,16.85251]
[1743010467857,3.0,2008.4,2008.1,11.87277]
[1743010468079,7.97911,2008.4,2008.1,11.87277]
[1743010468279,3.0,2008.4,2008.1,16.85243]
[1743010468581,3.0,2008.4,2008.1,11.87275]
[1743010468768,3.0,2008.4,2008.1,16.85244]
[1743010468970,3.0,2008.4,2008.1,11.87275]
[1743010469280,3.0,2008.4,2008.1,16.85249]
[1743010469489,7.9792,2008.4,2008.1,6.89309]
[1743010469687,4.97933,2008.3,2008.1,6.89309]
[1743010469857,7.97983,2008.1,2008.0,0.005]
[1743010470062,12.61910706,2008.1,2008.0,0.005]
[1743010470458,3.0,2008.1,2008.0,0.005]
[1743010470661,3.0,2008.1,2008.0,5.75287]
[1743010470864,3.0,2008.1,2008.0,6.328157]
[1743010472111,2.73003515,2008.1,2008.0,6.328157]
[1743010473167,7.70986515,2008.1,2008.0,0.005]
[1743010473378,2.73003515,2008.1,2008.0,0.7602]
[1743010473577,2.73003515,2008.1,2008.0,5.74027]
[1743010474993,2.73003515,2008.1,2008.0,0.7602]
[1743010475158,2.73003515,2008.1,2008.0,5.74027]
[1743010475362,5.17647,2008.9,2008.6,4.97854]
[1743010475688,11.05917205,2009.0,2008.6,4.97854]
[1743010475893,4.97788,2008.9,2008.6,4.97854]
[1743010476058,3.0,2008.9,2008.6,4.97842]
[1743010476263,4.97766,2009.0,2008.6,6.166031]
[1743010476460,7.63927706,2008.9,2008.4,6.11999]
[1743010476664,3.0,2008.6,2008.4,6.11999]
[1743010476893,7.9786,2008.6,2008.4,6.11999]
[1743010477088,3.0,2008.6,2008.4,6.11999]
[1743010477394,3.0,2008.6,2008.4,11.09899]
[1743010477564,4.97794,2008.9,2008.5,6.586661]
[1743010477896,4.97736,2009.1,2008.7,4.97832]
[1743010478074,4.97719,2009.2,2008.8,4.97803]
[1743010478275,4.97687,2009.3,2008.9,4.97774]
[1743010478608,15.05641706,2009.5,2008.9,0.04977521]
[1743010478789,15.05641706,2009.5,2008.7,4.97834]
[1743010478790,15.05641706,2009.5,2009.1,4.97731]
[1743010479093,5.242,2009.5,2009.2,4.9771]
[1743010479401,28.742,2009.6,2009.2,4.97698]
[1743010479691,33.71827,2009.6,2009.1,1.077872]
[1743010479895,3.0,2009.5,2009.0,0.824]
[1743010480196,3.0,2009.5,2009.1,4.97717]
[1743010480399,3.0,2009.5,2009.2,4.97709]
[1743010480875,3.0,2009.5,2009.3,4.97673]
[1743010481386,7.97645,2009.5,2009.1,4.97712]
[1743010482495,3.0,2009.5,2009.1,4.97712]
[1743010482669,7.97637,2009.5,2009.1,5.557352]
[1743010483068,7.97637,2009.5,2009.1,5.557322]
[1743010483365,12.61564706,2009.5,2009.1,5.557322]
[1743010483694,17.59212706,2009.5,2009.1,5.557322]
[1743010483894,17.59220706,2009.5,2009.1,4.97721]
[1743010484063,12.61564706,2009.5,2009.1,4.97721]
[1743010484792,12.61564706,2009.5,2009.1,9.95436]
[1743010484966,7.63927706,2009.5,2009.0,0.824]
[1743010485163,4.97404,2010.5,2009.0,0.824]
[1743010485164,9.81301706,2010.0,2009.5,4.97636]
[1743010485369,5.17374,2010.0,2009.5,4.97636]
[1743010485595,5.17374,2010.0,2009.6,4.97606]
[1743010485763,0.1986,2010.0,2009.4,5.78238]
[1743010485970,0.1986,2010.2,2009.8,4.97548]
[1743010486172,3.1986,2010.2,2009.8,4.97548]
[1743010486381,8.17327,2010.2,2009.8,4.97548]
[1743010486594,0.1986,2010.2,2009.9,4.97534]
[1743010487182,3.1986,2010.2,2009.9,4.97534]
[1743010487503,8.17325,2010.2,2009.8,4.97544]
[1743010488311,7.97521,2010.0,2009.6,4.97587]
[1743010488675,3.0,2010.0,2009.7,4.97566]
[1743010489001,3.0,2010.0,2009.6,0.04975446]
[1743010489002,3.1986,2010.2,2009.8,4.97543]
[1743010489303,3.0,2010.2,2009.9,4.97524]
[1743010489609,7.97465,2010.2,2009.8,5.80203]
[1743010489805,12.7657577,2010.2,2009.8,5.80203]
[1743010490199,3.0,2009.8,2009.4,4.97657]
[1743010490402,3.0,2009.8,2009.1,4.97725]
[1743010490403,3.0,2009.4,2009.1,4.97725]
[1743010490706,3.0,2009.4,2009.1,4.97734]
[1743010490899,3.0,2009.4,2009.2,4.977]
[1743010491104,3.0,2009.4,2009.1,4.97734]
[1743010491285,3.0,2009.4,2009.0,10.74065]
[1743010491478,3.0,2009.2,2008.8,5.9700748]
[1743010491706,3.0,2009.0,2008.8,4.97789]
[1743010491895,3.0,2009.0,2008.7,5.80924]
[1743010492096,9.61724706,2008.9,2008.5,5.80953]
[1743010492312,3.0,2008.8,2008.5,10.78823]
[1743010492508,7.97765,2009.0,2008.6,4.97854]
[1743010492714,3.0,2009.0,2008.7,4.97834]
[1743010493013,3.0,2009.1,2008.8,4.97809]
[1743010493526,12.61673706,2009.1,2008.7,4.97823]
[1743010493809,12.61673706,2009.1,2008.7,9.95646]
[1743010494720,12.61673706,2009.1,2008.7,4.97823]
[1743010495121,7.97696,2009.3,2008.9,4.97775]
[1743010495333,7.97696,2009.3,2008.7,1.1866693]
[1743010495334,3.0,2009.4,2009.1,4.97724]
[1743010496009,9.61567706,2009.5,2009.1,4.97724]
[1743010496205,5.3946,2009.6,2009.2,4.977]
[1743010496407,4.97464,2010.2,2009.5,0.7941]
[1743010496633,0.1986,2010.3,2010.0,4.97509]
[1743010496840,9.81177706,2010.5,2010.0,4.97501]
[1743010497043,3.0,2010.4,2010.0,9.95001]
[1743010497224,3.0,2010.4,2010.0,4.975]
[1743010497426,4.63927706,2010.1,2009.5,0.7941]
[1743010497626,3.0,2009.6,2009.3,4.97676]
[1743010498228,7.97566,2009.8,2009.3,4.97676]
[1743010498542,4.97587,2009.7,2009.3,4.97676]
[1743010499619,4.97587,2009.7,2009.2,5.72844]
[1743010499620,9.61514706,2009.7,2009.2,5.72844]
[1743010499835,3.0,2009.6,2009.2,9.95391]
[1743010500040,4.73940398,2009.6,2009.2,4.97693]
[1743010500213,4.73940398,2009.6,2009.2,9.95386]
[1743010500409,3.0,2009.6,2009.4,4.9765]
[1743010500631,3.0,2009.8,2009.3,4.97677]
[1743010500888,3.0,2009.6,2009.2,4.97701]
[1743010501219,3.0,2009.6,2009.1,4.97722]
[1743010501539,3.0,2009.6,2009.1,9.95446]
[1743010501740,3.0,2009.6,2009.1,4.97722]
[1743010501942,3.0,2009.2,2008.9,4.97761]
[1743010502149,3.0,2009.2,2008.8,4.97808]
[1743010502350,3.0,2009.0,2008.6,4.97842]
[1743010502836,7.97769,2009.0,2008.5,4.97877]
[1743010503044,3.0,2008.8,2008.6,0.580907]
[1743010503216,7.97769,2009.0,2008.6,5.559477]
[1743010503217,7.97767,2009.0,2008.6,5.559477]
[1743010503423,7.97767,2009.0,2008.4,0.8303]
[1743010503424,9.61724706,2008.9,2008.4,5.80938]
[1743010503647,4.9782,2008.8,2008.4,5.80921]
[1743010504152,9.61724706,2008.9,2008.5,4.97874]
[1743010504452,9.61724706,2008.9,2008.5,6.057535]
[1743010504660,3.1986,2009.0,2008.5,1.078795]
[1743010504966,3.0,2008.6,2008.4,4.979]
[1743010505354,3.0,2008.6,2008.5,4.97883]